fUSD/lending_fUSD_20250414
["ID","MTS","AMOUNT","RATE_DAILY","PERIOD"]
[358042233,1744666247472,-500.0,0.00017999,2]
[358042234,1744666247482,-500.0,0.00017999,2]
[358042235,1744666247492,-500.0,0.00017999,2]
[358042236,1744666247502,-500.0,0.00017999,2]
[358042237,1744666247512,-535.73,0.00017999,2]
[358042238,1744666247521,-295.69999989,0.00017999,2]
[358042239,1744666247532,-500.0,0.00017999,2]
[358042240,1744666247542,-279.83,0.00017999,2]
[358042241,1744666247552,-500.0,0.00017999,2]
[358042242,1744666247562,-500.0,0.00017999,2]
[358042243,1744666247572,-415.54,0.00017999,2]
[358042244,1744666247582,-500.0,0.00017999,2]
[358042245,1744666247592,-636.68,0.00017999,2]
[358042246,1744666247602,-500.0,0.00017999,2]
[358042247,1744666247612,-500.0,0.00017999,2]
[358042248,1744666247623,-500.0,0.00017999,2]
[358042249,1744666247633,-500.0,0.00017999,2]
[358042250,1744666247643,-540.82,0.00017999,2]
[358042251,1744666247653,-540.5,0.00017999,2]
[358042252,1744666247663,-156.64,0.00017999,2]
[358042253,1744666247673,-419.70362543,0.00017999,2]
[358042254,1744666247684,-500.0,0.00017999,2]
[358042255,1744666247694,-329.16,0.00017999,2]
[358042256,1744666247704,-500.0,0.00017999,2]
[358042257,1744666247714,-500.0,0.00017999,2]
[358042258,1744666247724,-500.0,0.00017999,2]
[358042259,1744666247887,-500.0,0.00017999,2]
[358042260,1744666247904,-500.0,0.00017999,2]
[358042261,1744666247915,-500.0,0.00017999,2]
[358042262,1744666247925,-500.0,0.00017999,2]
[358042263,1744666247936,-500.0,0.00017999,2]
[358042264,1744666247946,-500.0,0.00017999,2]
[358042265,1744666247956,-565.6,0.00017999,2]
[358042266,1744666247965,-500.0,0.00017999,2]
[358042267,1744666247975,-500.0,0.00017999,2]
[358042268,1744666247985,-420.94,0.00017999,2]
[358042269,1744666247994,-500.0,0.00017999,2]
[358042270,1744666248004,-500.0,0.00017999,2]
[358042271,1744666248014,-500.0,0.00017999,2]
[358042272,1744666248025,-500.0,0.00017999,2]
[358042273,1744666248035,-500.0,0.00017999,2]
[358042274,1744666248045,-500.0,0.00017999,2]
[358042275,1744666248056,-500.0,0.00017999,2]
[358042276,1744666248066,-500.0,0.00017999,2]
[358042277,1744666248076,-500.0,0.00017999,2]
[358042278,1744666248086,-500.0,0.00017999,2]
[358042279,1744666248096,-500.0,0.00017999,2]
[358042280,1744666248106,-500.0,0.00017999,2]
[358042281,1744666248116,-500.0,0.00017999,2]
[358042282,1744666248127,-500.0,0.00017999,2]
[358042283,1744666248138,-500.0,0.00017999,2]
[358042284,1744666248151,-500.0,0.00017999,2]
[358042285,1744666248161,-253.65488222,0.00017999,2]
[358042286,1744666248171,-500.0,0.00017999,2]
[358042287,1744666248181,-500.0,0.00017999,2]
[358042288,1744666248192,-500.0,0.00017999,2]
[358042289,1744666248202,-500.0,0.00017999,2]
[358042290,1744666248212,-316.97,0.00017999,2]
[358042291,1744666248224,-300.0,0.00017999,2]
[358042292,1744666248233,-511.56,0.00017999,2]
[358042293,1744666248243,-500.0,0.00017999,2]
[358042294,1744666248253,-500.0,0.00017999,2]
[358042295,1744666248263,-500.0,0.00017999,2]
[358042296,1744666248272,-500.0,0.00017999,2]
[358042297,1744666248282,-500.0,0.00017999,2]
[358042298,1744666248292,-500.0,0.00017999,2]
[358042299,1744666248302,-500.0,0.00017999,2]
[358042300,1744666248312,-500.0,0.00017999,2]
[358042301,1744666248321,-500.0,0.00017999,2]
[358042302,1744666248331,-500.0,0.00017999,2]
[358042303,1744666248341,-500.0,0.00017999,2]
[358042304,1744666248351,-500.0,0.00017999,2]
[358042305,1744666248361,-500.0,0.00017999,2]
[358042306,1744666248370,-549.33,0.00017999,2]
[358042307,1744666248380,-500.0,0.00017999,2]
[358042308,1744666248390,-500.0,0.00017999,2]
[358042309,1744666248400,-369.41,0.00017999,2]
[358042310,1744666248410,-500.0,0.00017999,2]
[358042311,1744666248420,-500.0,0.00017999,2]
[358042312,1744666248429,-500.0,0.00017999,2]
[358042313,1744666248439,-500.0,0.00017999,2]
[358042314,1744666248449,-500.0,0.00017999,2]
[358042315,1744666248459,-500.0,0.00017999,2]
[358042316,1744666248469,-500.0,0.00017999,2]
[358042317,1744666248479,-634.33,0.00017999,2]
[358042318,1744666248490,-500.0,0.00017999,2]
[358042319,1744666248500,-500.0,0.00017999,2]
[358042320,1744666248510,-500.0,0.00017999,2]
[358042321,1744666248519,-500.0,0.00017999,2]
[358042322,1744666248528,-500.0,0.00017999,2]
[358042323,1744666248538,-500.0,0.00017999,2]
[358042324,1744666248547,-500.0,0.00017999,2]
[358042325,1744666248557,-534.62,0.00017999,2]
[358042326,1744666248567,-314.01,0.00017999,2]
[358042327,1744666248576,-500.0,0.00017999,2]
[358042328,1744666248586,-500.0,0.00017999,2]
[358042329,1744666248596,-605.10323917,0.00017999,2]
[358042330,1744666248606,-500.0,0.00017999,2]
[358042331,1744666248615,-500.0,0.00017999,2]
[358042332,1744666248625,-500.0,0.00017999,2]
[358042333,1744666248635,-500.0,0.00017999,2]
[358042334,1744666248644,-500.0,0.00017999,2]
[358042335,1744666248654,-500.0,0.00017999,2]
[358042336,1744666248663,-500.0,0.00017999,2]
[358042337,1744666248672,-500.0,0.00017999,2]
[358042338,1744666248682,-543.42,0.00017999,2]
[358042339,1744666248692,-500.0,0.00017999,2]
[358042340,1744666248702,-26227.07,0.00017999,2]
[358042341,1744666248712,-26227.07,0.00017999,2]
[358042342,1744666248721,-26227.07,0.00017999,2]
[358042343,1744666248731,-26227.07,0.00017999,2]
[358042344,1744666248741,-26227.07,0.00017999,2]
[358042345,1744666248751,-26227.07,0.00017999,2]
[358042346,1744666248762,-26227.07,0.00017999,2]
[358042347,1744666248773,-26227.07,0.00017999,2]
[358042348,1744666248783,-26227.07,0.00017999,2]
[358042349,1744666248793,-26227.07,0.00017999,2]
[358042350,1744666248803,-26227.07,0.00017999,2]
[358042351,1744666248814,-26227.07,0.00017999,2]
[358042352,1744666248824,-26227.07,0.00017999,2]
[358042353,1744666248835,-26227.07,0.00017999,2]
[358042354,1744666248845,-26227.07,0.00017999,2]
[358042355,1744666248855,-500.0,0.00017999,2]
[358042356,1744666248865,-26227.07,0.00017999,2]
[358042357,1744666248875,-26227.07,0.00017999,2]
[358042358,1744666248885,-26227.07,0.00017999,2]
[358042359,1744666248896,-26227.07,0.00017999,2]
[358042360,1744666248906,-26227.1549,0.00017999,2]
[358042361,1744666248915,-492.43,0.00017999,2]
[358042362,1744666248925,-500.0,0.00017999,2]
[358042363,1744666248935,-500.0,0.00017999,2]
[358042364,1744666248945,-500.0,0.00017999,2]
[358042365,1744666248955,-500.0,0.00017999,2]
[358042366,1744666248965,-500.0,0.00017999,2]
[358042367,1744666248975,-500.0,0.00017999,2]
[358042368,1744666248986,-500.0,0.00017999,2]
[358042369,1744666248996,-500.0,0.00017999,2]
[358042370,1744666249006,-500.0,0.00017999,2]
[358042371,1744666249015,-500.0,0.00017999,2]
[358042372,1744666249025,-500.0,0.00017999,2]
[358042373,1744666249035,-500.0,0.00017999,2]
[358042374,1744666249044,-500.0,0.00017999,2]
[358042375,1744666249054,-500.0,0.00017999,2]
[358042376,1744666249064,-500.0,0.00017999,2]
[358042377,1744666249074,-500.0,0.00017999,2]
[358042378,1744666249084,-325.0,0.00017999,2]
[358042379,1744666249094,-500.0,0.00017999,2]
[358042380,1744666249105,-500.0,0.00017999,2]
[358042381,1744666249115,-500.0,0.00017999,2]
[358042382,1744666249126,-500.0,0.00017999,2]
[358042383,1744666249136,-500.0,0.00017999,2]
[358042384,1744666249150,-500.0,0.00017999,2]
[358042385,1744666249161,-500.0,0.00017999,2]
[358042386,1744666249170,-500.0,0.00017999,2]
[358042387,1744666249180,-500.0,0.00017999,2]
[358042388,1744666249190,-236.41,0.00017999,2]
[358042389,1744666249201,-879.54,0.00017999,2]
[358042390,1744666249211,-879.54,0.00017999,2]
[358042391,1744666249224,-879.54,0.00017999,2]
[358042392,1744666249235,-879.54,0.00017999,2]
[358042393,1744666249245,-879.54,0.00017999,2]
[358042394,1744666249255,-879.54,0.00017999,2]
[358042395,1744666249266,-500.0,0.00017999,2]
[358042396,1744666249276,-879.54,0.00017999,2]
[358042397,1744666249286,-500.0,0.00017999,2]
[358042398,1744666249297,-879.54,0.00017999,2]
[358042399,1744666249308,-477.18,0.00017999,2]
[358042400,1744666249319,-879.54,0.00017999,2]
[358042401,1744666249330,-879.54,0.00017999,2]
[358042402,1744666249340,-879.54,0.00017999,2]
[358042403,1744666249350,-879.54,0.00017999,2]
[358042404,1744666249360,-879.54,0.00017999,2]
[358042405,1744666249371,-879.54,0.00017999,2]
[358042406,1744666249381,-879.54,0.00017999,2]
[358042407,1744666249392,-879.54,0.00017999,2]
[358042408,1744666249403,-879.54,0.00017999,2]
[358042409,1744666249413,-879.54,0.00017999,2]
[358042410,1744666249423,-879.54,0.00017999,2]
[358042411,1744666249433,-500.0,0.00017999,2]
[358042412,1744666249443,-879.65,0.00017999,2]
[358042413,1744666249453,-500.0,0.00017999,2]
[358042414,1744666249462,-500.0,0.00017999,2]
[358042415,1744666249471,-500.0,0.00017999,2]
[358042416,1744666249481,-500.0,0.00017999,2]
[358042417,1744666249492,-500.0,0.00017999,2]
[358042418,1744666249502,-500.0,0.00017999,2]
[358042419,1744666249513,-500.0,0.00017999,2]
[358042420,1744666249523,-500.0,0.00017999,2]
[358042421,1744666249533,-500.0,0.00017999,2]
[358042422,1744666249543,-500.0,0.00017999,2]
[358042423,1744666249554,-500.0,0.00017999,2]
[358042424,1744666249564,-500.0,0.00017999,2]
[358042425,1744666249574,-500.0,0.00017999,2]
[358042426,1744666249583,-500.0,0.00017999,2]
[358042427,1744666249593,-500.0,0.00017999,2]
[358042428,1744666249603,-500.0,0.00017999,2]
[358042429,1744666249613,-500.0,0.00017999,2]
[358042430,1744666249623,-299.05,0.00017999,2]
[358042431,1744666249634,-500.0,0.00017999,2]
[358042432,1744666249644,-500.0,0.00017999,2]
[358042433,1744666249655,-500.0,0.00017999,2]
[358042434,1744666249665,-500.0,0.00017999,2]
[358042435,1744666249675,-500.0,0.00017999,2]
[358042436,1744666249685,-500.0,0.00017999,2]
[358042437,1744666249695,-500.0,0.00017999,2]
[358042438,1744666249706,-500.0,0.00017999,2]
[358042439,1744666249716,-500.0,0.00017999,2]
[358042440,1744666249726,-500.0,0.00017999,2]
[358042441,1744666249738,-500.0,0.00017999,2]
[358042442,1744666249748,-500.0,0.00017999,2]
[358042443,1744666249758,-500.0,0.00017999,2]
[358042444,1744666249768,-500.0,0.00017999,2]
[358042445,1744666249778,-500.0,0.00017999,2]
[358042446,1744666249788,-500.0,0.00017999,2]
[358042447,1744666249798,-500.0,0.00017999,2]
[358042448,1744666249809,-500.0,0.00017999,2]
[358042449,1744666249819,-500.0,0.00017999,2]
[358042450,1744666249830,-619.85,0.00017999,2]
[358042451,1744666249840,-500.0,0.00017999,2]
[358042452,1744666249850,-500.0,0.00017999,2]
[358042453,1744666249859,-500.0,0.00017999,2]
[358042454,1744666249869,-500.0,0.00017999,2]
[358042455,1744666249878,-500.0,0.00017999,2]
[358042456,1744666249888,-500.0,0.00017999,2]
[358042457,1744666249898,-393.13,0.00017999,2]
[358042458,1744666249908,-570.25,0.00017999,2]
[358042459,1744666249917,-570.25,0.00017999,2]
[358042460,1744666249927,-570.25,0.00017999,2]
[358042461,1744666249936,-570.25,0.00017999,2]
[358042462,1744666249946,-500.0,0.00017999,2]
[358042463,1744666249955,-570.25,0.00017999,2]
[358042464,1744666249964,-500.0,0.00017999,2]
[358042465,1744666249974,-570.25,0.00017999,2]
[358042466,1744666249984,-500.0,0.00017999,2]
[358042467,1744666249994,-570.25,0.00017999,2]
[358042468,1744666250004,-500.0,0.00017999,2]
[358042469,1744666250014,-570.25,0.00017999,2]
[358042470,1744666250024,-500.0,0.00017999,2]
[358042471,1744666250034,-570.25,0.00017999,2]
[358042472,1744666250044,-500.0,0.00017999,2]
[358042473,1744666250054,-570.25,0.00017999,2]
[358042474,1744666250064,-500.0,0.00017999,2]
[358042475,1744666250074,-570.25,0.00017999,2]
[358042476,1744666250085,-570.25,0.00017999,2]
[358042477,1744666250095,-500.0,0.00017999,2]
[358042478,1744666250106,-570.25,0.00017999,2]
[358042479,1744666250116,-239.25,0.00017999,2]
[358042480,1744666250126,-570.25,0.00017999,2]
[358042481,1744666250136,-570.25,0.00017999,2]
[358042482,1744666250150,-570.25,0.00017999,2]
[358042483,1744666250160,-570.25,0.00017999,2]
[358042484,1744666250169,-570.25,0.00017999,2]
[358042485,1744666250180,-570.25,0.00017999,2]
[358042486,1744666250200,-570.35179042,0.00017999,2]
[358042487,1744666250220,-500.0,0.00017999,2]
[358042488,1744666250230,-500.0,0.00017999,2]
[358042489,1744666250240,-500.0,0.00017999,2]
[358042490,1744666250250,-500.0,0.00017999,2]
[358042491,1744666250260,-500.0,0.00017999,2]
[358042492,1744666250271,-500.0,0.00017999,2]
[358042493,1744666250281,-500.0,0.00017999,2]
[358042494,1744666250291,-500.0,0.00017999,2]
[358042495,1744666250300,-336.7205093,0.00017999,2]
[358042496,1744666250311,-500.0,0.00017999,2]
[358042497,1744666250321,-500.0,0.00017999,2]
[358042498,1744666250331,-500.0,0.00017999,2]
[358042499,1744666250341,-161.83,0.00017999,2]
[358042500,1744666250351,-2072.73,0.00017999,2]
[358042501,1744666250361,-2072.73,0.00017999,2]
[358042502,1744666250371,-2072.73,0.00017999,2]
[358042503,1744666250381,-2072.73,0.00017999,2]
[358042504,1744666250391,-2072.73,0.00017999,2]
[358042505,1744666250400,-2072.73,0.00017999,2]
[358042506,1744666250410,-2072.73,0.00017999,2]
[358042507,1744666250419,-2072.73,0.00017999,2]
[358042508,1744666250429,-2072.73,0.00017999,2]
[358042509,1744666250439,-2072.73,0.00017999,2]
[358042510,1744666250449,-2072.73,0.00017999,2]
[358042511,1744666250459,-2072.73,0.00017999,2]
[358042512,1744666250469,-2072.73,0.00017999,2]
[358042513,1744666250479,-2072.73,0.00017999,2]
[358042514,1744666250488,-2072.73,0.00017999,2]
[358042515,1744666250498,-2072.73,0.00017999,2]
[358042516,1744666250508,-2072.73,0.00017999,2]
[358042517,1744666250517,-2072.73,0.00017999,2]
[358042518,1744666250527,-2072.73,0.00017999,2]
[358042519,1744666250537,-2072.91499243,0.00017999,2]
[358042520,1744666250547,-306.96,0.00017999,2]
[358042521,1744666250557,-500.0,0.00017999,2]
[358042522,1744666250567,-500.0,0.00017999,2]
[358042523,1744666250577,-500.0,0.00017999,2]
[358042524,1744666250587,-395.68,0.00017999,2]
[358042525,1744666250601,-1399.42,0.00017999,2]
[358042526,1744666250624,-1399.42,0.00017999,2]
[358042527,1744666250649,-1399.42,0.00017999,2]
[358042528,1744666250675,-1399.42,0.00017999,2]
[358042529,1744666250701,-1399.42,0.00017999,2]
[358042530,1744666250724,-1399.42,0.00017999,2]
[358042531,1744666250748,-1399.42,0.00017999,2]
[358042532,1744666250775,-1399.42,0.00017999,2]
[358042533,1744666250799,-1399.42,0.00017999,2]
[358042534,1744666250821,-1399.42,0.00017999,2]
[358042535,1744666250843,-1399.42,0.00017999,2]
[358042536,1744666250867,-1399.42,0.00017999,2]
[358042537,1744666250890,-1399.42,0.00017999,2]
[358042538,1744666250915,-1399.42,0.00017999,2]
[358042539,1744666250934,-1399.42,0.00017999,2]
[358042540,1744666250943,-1399.42,0.00017999,2]
[358042541,1744666250952,-500.0,0.00017999,2]
[358042542,1744666250962,-1399.42,0.00017999,2]
[358042543,1744666250972,-1705.45,0.00017999,2]
[358042544,1744666250981,-1399.42,0.00017999,2]
[358042545,1744666250991,-1705.45,0.00017999,2]
[358042546,1744666251000,-500.0,0.00017999,2]
[358042547,1744666251010,-1399.42,0.00017999,2]
[358042548,1744666251021,-1705.45,0.00017999,2]
[358042549,1744666251030,-500.0,0.00017999,2]
[358042550,1744666251040,-1705.45,0.00017999,2]
[358042551,1744666251051,-1399.43,0.00017999,2]
[358042552,1744666251061,-1705.45,0.00017999,2]
[358042553,1744666251071,-500.0,0.00017999,2]
[358042554,1744666251081,-1705.45,0.00017999,2]
[358042555,1744666251091,-1705.45,0.00017999,2]
[358042556,1744666251101,-500.0,0.00017999,2]
[358042557,1744666251111,-1705.45,0.00017999,2]
[358042558,1744666251121,-1705.45,0.00017999,2]
[358042559,1744666251131,-500.0,0.00017999,2]
[358042560,1744666251140,-1705.45,0.00017999,2]
[358042561,1744666251152,-500.0,0.00017999,2]
[358042562,1744666251161,-1705.45,0.00017999,2]
[358042563,1744666251170,-500.0,0.00017999,2]
[358042564,1744666251179,-1705.45,0.00017999,2]
[358042565,1744666251189,-500.0,0.00017999,2]
[358042566,1744666251198,-1705.45,0.00017999,2]
[358042567,1744666251207,-150.0,0.00017999,2]
[358042568,1744666251217,-500.0,0.00017999,2]
[358042569,1744666251227,-1705.45,0.00017999,2]
[358042570,1744666251237,-607.99,0.00017999,2]
[358042571,1744666251246,-1705.45,0.00017999,2]
[358042572,1744666251255,-1705.45,0.00017999,2]
[358042573,1744666251265,-1705.45,0.00017999,2]
[358042574,1744666251274,-1705.45,0.00017999,2]
[358042575,1744666251284,-1705.45,0.00017999,2]
[358042576,1744666251293,-1705.62185581,0.00017999,2]
[358042577,1744666251303,-430.04,0.00017999,2]
[358042578,1744666251312,-500.0,0.00017999,2]
[358042579,1744666251322,-500.0,0.00017999,2]
[358042580,1744666251331,-500.0,0.00017999,2]
[358042581,1744666251341,-500.0,0.00017999,2]
[358042582,1744666251351,-500.0,0.00017999,2]
[358042583,1744666251360,-500.0,0.00017999,2]
[358042584,1744666251369,-500.0,0.00017999,2]
[358042585,1744666251379,-365.75,0.00017999,2]
[358042586,1744666251388,-500.0,0.00017999,2]
[358042587,1744666251398,-585.98,0.00017999,2]
[358042588,1744666251407,-500.0,0.00017999,2]
[358042589,1744666251417,-593.98,0.00017999,2]
[358042590,1744666251427,-500.0,0.00017999,2]
[358042591,1744666251436,-500.0,0.00017999,2]
[358042592,1744666251445,-392.54,0.00017999,2]
[358042593,1744666251455,-270.56,0.00017999,2]
[358042594,1744666251465,-500.0,0.00017999,2]
[358042595,1744666251475,-500.0,0.00017999,2]
[358042596,1744666251484,-339.91,0.00017999,2]
[358042597,1744666251493,-194.68,0.00017999,2]
[358042598,1744666251503,-500.0,0.00017999,2]
[358042599,1744666251513,-500.0,0.00017999,2]
[358042600,1744666251523,-300.77,0.00017999,2]
[358042601,1744666251533,-500.0,0.00017999,2]
[358042602,1744666251543,-500.0,0.00017999,2]
[358042603,1744666251552,-500.0,0.00017999,2]
[358042604,1744666251561,-500.0,0.00017999,2]
[358042605,1744666251571,-500.0,0.00017999,2]
[358042606,1744666251580,-204.98,0.00017999,2]
[358042607,1744666251589,-500.0,0.00017999,2]
[358042608,1744666251599,-500.0,0.00017999,2]
[358042609,1744666251608,-500.0,0.00017999,2]
[358042610,1744666251617,-500.0,0.00017999,2]
[358042611,1744666251627,-474.69,0.00017999,2]
[358042612,1744666251636,-709061.64781278,0.00018,2]
[358042613,1744666251678,-34192.15776186,0.00018,2]
[358042614,1744666253279,-169912.01495983,0.00018,2]
[358042615,1744666253288,-453.05592858,0.00018,2]
[358042616,1744666253297,-13989.03496381,0.00018,2]
[358042617,1744666254154,-190.17704303,0.00017887,2]
[358042618,1744666254164,-335620.77308916,0.00018,2]
[358042619,1744666254518,-328799.194722,0.00018,2]
[358042620,1744666256680,400.0,0.000174,6]
[358042621,1744666258804,800.0,0.000175,6]
[358042622,1744666260903,1200.0,0.000176,6]
[358042623,1744666263004,1600.0,0.000177,6]
[358042624,1744666265095,2000.0,0.000178,6]
[358042625,1744666267189,400.0,0.000179,6]
[358042626,1744666269348,400.0,0.000198,7]
[358042627,1744666271446,400.0,0.000199,7]
[358042628,1744666277068,-312.14173191,0.000178,2]
[358042629,1744666299259,214.11584531,0.000179,3]
[358042630,1744666345767,-156.20025493,0.000178,2]
[358042631,1744666345790,-93.79974507,0.000178,2]
[358042632,1744666360995,-181.08845493,0.000178,2]
[358042633,1744666361018,-50.52318558,0.000178,2]
[358042634,1744666392485,200.0,0.00017299,2]
[358042635,1744666393517,-200.0,0.00017711,2]
[358042636,1744666483981,6321.69,0.0001702,2]
[358042637,1744666563666,200.0,0.00016985,7]
[358042638,1744666565059,784.75,0.00015067,2]
[358042639,1744666565285,784.75,0.00017331,2]
[358042640,1744666565950,-281.611641,0.00017711,2]
[358042641,1744666574338,-355.2117833,0.00017786,2]
[358042642,1744666579397,928.39,0.00017003,2]
[358042643,1744666658181,189.98,0.00017476,2]
[358042644,1744666686593,1132.07,0.00016945,2]
[358042645,1744666788165,-464.68755126,0.000177,2]
[358042646,1744666801388,159.78,0.00016926,2]
[358042647,1744666855548,-230.80679932,0.000177,2]
[358042648,1744666883308,-169.2879,0.000177,2]
[358042649,1744666892658,-221.7061,0.000177,2]
[358042650,1744666925986,250.0,0.00017004,2]
[358042651,1744666927404,-172.41434763,0.000177,2]
[358042652,1744666927429,-64.39350791,0.00017718,2]
[358042653,1744666928421,-185.60649209,0.00017718,2]
[358042654,1744667234207,1000.0,0.0001691,2]
[358042655,1744667280749,222.9,0.00017458,2]
[358042656,1744667283668,-214.99372291,0.00017785,2]
[358042659,1744667390673,-629.43,0.000177,2]
[358042660,1744667404751,-187.2791,0.00017785,2]
[358042661,1744667405096,2000.0,0.0002,4]
[358042665,1744667431783,-21.81413263,0.00017785,2]
[358042666,1744667431794,-236.80785553,0.00017835,2]
[358042667,1744667431804,-200.0,0.00017855,2]
[358042668,1744667431814,-200.0,0.00017856,2]
[358042669,1744667431824,-95.13006843,0.00017884,2]
[358042670,1744667431836,-204.86993157,0.00017884,2]
[358042671,1744667431845,-300.0,0.00017884,2]
[358042672,1744667431856,-259.8773,0.00017885,2]
[358042673,1744667431866,-571.56513136,0.00017885,2]
[358042674,1744667431879,-26026.19036864,0.00017885,2]
[358042675,1744667431889,-876.7776,0.00017885,2]
[358042676,1744667431898,-236.80785553,0.00017885,2]
[358042677,1744667431908,-241.58221538,0.00017886,2]
[358042678,1744667431918,-1000.0,0.00017886,2]
[358042679,1744667431928,-828.0866,0.00017886,2]
[358042680,1744667431937,-2500.0,0.00017886,2]
[358042681,1744667431947,-241.58221532,0.00017888,2]
[358042682,1744667431958,-241.58221532,0.00017889,2]
[358042683,1744667431968,-241.58221532,0.00017891,2]
[358042684,1744667431978,-241.58221532,0.00017892,2]
[358042685,1744667431990,-241.58221532,0.00017894,2]
[358042686,1744667431999,-241.58221532,0.00017895,2]
[358042687,1744667432008,-241.58221532,0.00017897,2]
[358042688,1744667432018,-1577.8597,0.00017897,2]
[358042689,1744667432027,-241.58221532,0.00017898,2]
[358042690,1744667432036,-308.03921952,0.00017899,2]
[358042691,1744667432046,-384.73367996,0.00017899,2]
[358042692,1744667432055,-766.5974,0.000179,2]
[358042693,1744667432064,-241.58221532,0.000179,2]
[358042694,1744667432074,-181.68596412,0.000179,2]
[358042695,1744667432083,-162.07017841,0.000179,2]
[358042696,1744667432093,-503.0,0.00017973,2]
[358042697,1744667432102,-500.0,0.00017973,2]
[358042698,1744667432111,-500.0,0.00017973,2]
[358042699,1744667432120,-296.88804023,0.00017973,2]
[358042700,1744667432130,-171.7030028,0.00017973,2]
[358042701,1744667432139,-3410.13786954,0.00017975,2]
[358042702,1744667432148,-1352.9,0.00017976,2]
[358042704,1744667432157,-962.3588002,0.00017984,2]
[358042706,1744667432167,-500.0,0.00017985,2]
[358042708,1744667432177,-500.0,0.00017985,2]
[358042709,1744667432186,-258.56675348,0.00017985,2]
[358042710,1744667432195,-590.09900104,0.00017985,2]
[358042711,1744667432205,-500.0,0.00017985,2]
[358042712,1744667432214,-500.0,0.00017985,2]
[358042713,1744667432223,-540.14638051,0.00017985,2]
[358042714,1744667432232,-500.0,0.00017985,2]
[358042715,1744667432241,-500.0,0.00017985,2]
[358042716,1744667432251,-500.0,0.00017985,2]
[358042717,1744667432260,-500.0,0.00017985,2]
[358042718,1744667432269,-500.0,0.00017985,2]
[358042719,1744667432279,-500.0,0.00017985,2]
[358042720,1744667432288,-500.0,0.00017985,2]
[358042721,1744667432298,-500.0,0.00017985,2]
[358042722,1744667432307,-500.0,0.00017985,2]
[358042723,1744667432316,-500.0,0.00017985,2]
[358042724,1744667432325,-500.0,0.00017985,2]
[358042725,1744667432335,-500.0,0.00017985,2]
[358042726,1744667432344,-500.0,0.00017985,2]
[358042727,1744667432354,-500.0,0.00017985,2]
[358042728,1744667432363,-500.0,0.00017985,2]
[358042729,1744667432373,-500.0,0.00017985,2]
[358042730,1744667432382,-500.0,0.00017985,2]
[358042731,1744667432391,-500.0,0.00017985,2]
[358042732,1744667432400,-500.0,0.00017985,2]
[358042733,1744667432409,-500.0,0.00017985,2]
[358042734,1744667432419,-500.0,0.00017985,2]
[358042735,1744667432428,-500.0,0.00017985,2]
[358042736,1744667432437,-500.0,0.00017985,2]
[358042737,1744667432447,-500.0,0.00017985,2]
[358042738,1744667432455,-500.0,0.00017985,2]
[358042739,1744667432465,-621.33,0.00017985,2]
[358042740,1744667432475,-500.0,0.00017985,2]